[Event "British Rapidplay Championship 2023"]
[Site "Mercure Bradford, Bankfield Hotel"]
[Date "2023.04.16"]
[Round "10.1"]
[White "Ghasi, Ameet K"]
[Black "Wells, Peter K"]
[Result "1-0"]
[TimeControl "15 minutes plus 10 seconds per move"]
[WhiteElo "2631"]
[BlackElo "2466"]

1. Nf3 {[%clk 00:14:23]} {[%emt 00:00:56]} c5 {[%clk 00:15:16]} {[%emt
00:00:04]} 2. g3 {[%clk 00:14:30]} {[%emt 00:00:03]} Nc6 {[%clk 00:15:23]}
{[%emt 00:00:03]} 3. Bg2 {[%clk 00:14:37]} {[%emt 00:00:03]} g6 {[%clk
00:15:32]} {[%emt 00:00:02]} 4. O-O {[%clk 00:14:40]} {[%emt 00:00:07]} Bg7
{[%clk 00:15:38]} {[%emt 00:00:04]} 5. d3 {[%clk 00:14:49]} {[%emt 00:00:01]}
d6 {[%clk 00:15:15]} {[%emt 00:00:33]} 6. c4 {[%clk 00:14:54]} {[%emt
00:00:05]} e6 {[%clk 00:14:55]} {[%emt 00:00:29]} 7. Nc3 {[%clk 00:14:28]}
{[%emt 00:00:36]} Nge7 {[%clk 00:15:00]} {[%emt 00:00:06]} 8. Bd2 {[%clk
00:13:51]} {[%emt 00:00:47]} O-O {[%clk 00:14:23]} {[%emt 00:00:47]} 9. a3
{[%clk 00:13:55]} {[%emt 00:00:05]} b6 {[%clk 00:13:40]} {[%emt 00:00:54]} 10.
Rb1 {[%clk 00:13:29]} {[%emt 00:00:36]} Bb7 {[%clk 00:13:41]} {[%emt 00:00:09]}
11. b4 {[%clk 00:13:35]} {[%emt 00:00:04]} Qd7 {[%clk 00:13:42]} {[%emt
00:00:08]} 12. e3 {[%clk 00:10:55]} {[%emt 00:02:50]} Rab8 {[%clk 00:12:35]}
{[%emt 00:01:18]} 13. Na4 {[%clk 00:09:24]} {[%emt 00:01:41]} e5 {[%clk
00:08:10]} {[%emt 00:04:35]} 14. Nc3 {[%clk 00:09:14]} {[%emt 00:00:19]} f5
{[%clk 00:06:55]} {[%emt 00:01:26]} 15. Qa4 {[%clk 00:08:16]} {[%emt 00:01:08]}
h6 {[%clk 00:06:39]} {[%emt 00:00:26]} 16. Nd5 {[%clk 00:07:10]} {[%emt
00:01:14]} Qe8 {[%clk 00:03:28]} {[%emt 00:03:23]} 17. Qc2 {[%clk 00:05:37]}
{[%emt 00:01:43]} Nxd5 {[%clk 00:02:59]} {[%emt 00:00:38]} 18. cxd5 {[%clk
00:05:45]} {[%emt 00:00:02]} Ne7 {[%clk 00:03:09]} 19. bxc5 {[%clk 00:05:46]}
{[%emt 00:00:10]} bxc5 {[%clk 00:03:10]} {[%emt 00:00:08]} 20. e4 {[%clk
00:05:47]} {[%emt 00:00:10]} Qd7 {[%clk 00:02:24]} {[%emt 00:00:56]} 21. Qc4
{[%clk 00:04:30]} {[%emt 00:01:26]} Ba8 {[%clk 00:01:36]} {[%emt 00:00:59]} 22.
Bc3 {[%clk 00:04:15]} {[%emt 00:00:23]} Kh7 {[%clk 00:01:35]} {[%emt 00:00:13]}
23. Nd2 {[%clk 00:04:04]} {[%emt 00:00:20]} Rb7 {[%clk 00:01:09]} {[%emt
00:00:37]} 24. Rxb7 {[%clk 00:04:04]} {[%emt 00:00:10]} Bxb7 {[%clk 00:01:10]}
{[%emt 00:00:09]} 25. Rb1 {[%clk 00:04:13]} Qc8 {[%clk 00:01:17]} {[%emt
00:00:03]} 26. Qa4 {[%clk 00:03:44]} {[%emt 00:00:38]} Ba6 {[%clk 00:00:58]}
{[%emt 00:00:29]} 27. Nc4 {[%clk 00:03:53]} {[%emt 00:00:01]} Bxc4 {[%clk
00:00:33]} {[%emt 00:00:35]} 28. dxc4 {[%clk 00:03:53]} {[%emt 00:00:10]} fxe4
{[%clk 00:00:24]} {[%emt 00:00:20]} 29. Qxa7 {[%clk 00:03:12]} {[%emt
00:00:51]} Qf5 {[%clk 00:00:22]} {[%emt 00:00:12]} 30. Rf1 {[%clk 00:01:38]}
{[%emt 00:01:43]} Ng8 {[%clk 00:00:20]} {[%emt 00:00:12]} 31. Bd2 {[%clk
00:01:42]} {[%emt 00:00:06]} h5 {[%clk 00:00:20]} {[%emt 00:00:11]} 32. Qc7
{[%clk 00:01:32]} {[%emt 00:00:19]} e3 {[%clk 00:00:13]} {[%emt 00:00:18]} 33.
Bxe3 {[%clk 00:01:29]} {[%emt 00:00:13]} Qf6 {[%clk 00:00:13]} {[%emt
00:00:09]} 34. a4 {[%clk 00:01:09]} {[%emt 00:00:31]} Rf7 {[%clk 00:00:22]}
{[%emt 00:00:01]} 35. Qb6 {[%clk 00:01:11]} {[%emt 00:00:05]} Bh6 {[%emt
00:00:10]} 36. a5 {[%clk 00:01:15]} {[%emt 00:00:04]} Ne7 {[%clk 00:00:25]}
{[%emt 00:00:11]} 37. Bxh6 {[%clk 00:01:02]} {[%emt 00:00:24]} Kxh6 {[%clk
00:00:34]} 38. a6 {[%clk 00:01:08]} {[%emt 00:00:04]} Nc8 {[%clk 00:00:41]}
{[%emt 00:00:03]} 39. Qb3 {[%clk 00:01:10]} {[%emt 00:00:06]} h4 {[%clk
00:00:46]} {[%emt 00:00:06]} 40. Bh3 {[%clk 00:00:59]} {[%emt 00:00:22]} Na7
{[%clk 00:00:55]} {[%emt 00:00:01]} 41. Be6 {[%clk 00:00:57]} {[%emt 00:00:11]}
Re7 {[%clk 00:01:04]} {[%emt 00:00:02]} 42. Rb1 {[%clk 00:01:00]} {[%emt
00:00:07]} Kg7 {[%clk 00:00:42]} {[%emt 00:00:31]} 43. Qe3 {[%clk 00:00:47]}
{[%emt 00:00:21]} g5 {[%clk 00:00:40]} {[%emt 00:00:14]} 44. Rb7 {[%clk
00:00:46]} {[%emt 00:00:11]} Kf8 {[%clk 00:00:38]} {[%emt 00:00:13]} 45. Qe4
{[%clk 00:00:32]} {[%emt 00:00:23]} Kg7 {[%clk 00:00:38]} {[%emt 00:00:11]} 46.
Kg2 {[%clk 00:00:40]} {[%emt 00:00:02]} hxg3 {[%clk 00:00:16]} {[%emt
00:00:31]} 47. hxg3 {[%clk 00:00:49]} {[%emt 00:00:01]} Kh6 {[%clk 00:00:14]}
{[%emt 00:00:12]} 48. Qg4 {[%clk 00:00:53]} {[%emt 00:00:06]} Rxb7 {[%clk
00:00:14]} {[%emt 00:00:10]} 49. axb7 {[%clk 00:01:01]} {[%emt 00:00:02]} Qd8
{[%clk 00:00:24]} 50. Qf5 {[%clk 00:01:02]} {[%emt 00:00:07]} 1-0

[Event "British Rapidplay Championship 2023"]
[Site "Mercure Bradford, Bankfield Hotel"]
[Date "2023.04.16"]
[Round "10.2"]
[White "Gormally, Daniel W"]
[Black "Dong, Bao Nghia"]
[Result "0-1"]
[TimeControl "15 minutes plus 10 seconds per move"]
[WhiteElo "2570"]
[BlackElo "2331"]

1. d4 {[%clk 00:15:18]} {[%emt 00:00:01]} Nf6 {[%clk 00:15:17]} {[%emt
00:00:03]} 2. Nf3 {[%clk 00:15:27]} d6 {[%clk 00:15:25]} {[%emt 00:00:02]} 3.
Nc3 {[%clk 00:15:20]} {[%emt 00:00:17]} Nbd7 {[%clk 00:15:28]} {[%emt
00:00:07]} 4. e4 {[%clk 00:15:17]} {[%emt 00:00:13]} e5 {[%clk 00:15:35]}
{[%emt 00:00:03]} 5. Bc4 {[%clk 00:15:26]} h6 {[%clk 00:15:29]} {[%emt
00:00:16]} 6. Be3 {[%clk 00:15:21]} {[%emt 00:00:15]} Be7 {[%clk 00:15:36]}
{[%emt 00:00:03]} 7. h3 {[%clk 00:15:16]} {[%emt 00:00:16]} c6 {[%clk
00:15:42]} {[%emt 00:00:04]} 8. a4 {[%clk 00:15:22]} {[%emt 00:00:03]} Qc7
{[%clk 00:15:47]} {[%emt 00:00:05]} 9. Qe2 {[%clk 00:15:04]} {[%emt 00:00:28]}
O-O {[%clk 00:15:30]} {[%emt 00:00:27]} 10. O-O {[%clk 00:15:01]} {[%emt
00:00:14]} Re8 {[%clk 00:15:31]} {[%emt 00:00:08]} 11. dxe5 {[%clk 00:14:24]}
{[%emt 00:00:48]} dxe5 {[%clk 00:15:29]} {[%emt 00:00:12]} 12. Ba2 {[%clk
00:14:29]} {[%emt 00:00:05]} Nf8 {[%clk 00:15:35]} {[%emt 00:00:03]} 13. Rfd1
{[%clk 00:13:59]} {[%emt 00:00:40]} Ng6 {[%clk 00:15:31]} {[%emt 00:00:13]} 14.
Nd2 {[%clk 00:13:21]} {[%emt 00:00:50]} Bb4 {[%clk 00:14:55]} {[%emt 00:00:46]}
15. Ncb1 {[%clk 00:12:59]} {[%emt 00:00:31]} Qe7 {[%clk 00:13:48]} {[%emt
00:01:18]} 16. c3 {[%clk 00:13:06]} {[%emt 00:00:02]} Bc5 {[%clk 00:13:56]}
{[%emt 00:00:02]} 17. Bxf7+ {[%clk 00:11:46]} {[%emt 00:01:30]} Qxf7 {[%clk
00:13:54]} {[%emt 00:00:12]} 18. Bxc5 {[%clk 00:11:55]} {[%emt 00:00:02]} Nf4
{[%clk 00:14:00]} {[%emt 00:00:04]} 19. Qf3 {[%clk 00:12:04]} {[%emt 00:00:01]}
Nh7 {[%clk 00:14:01]} {[%emt 00:00:09]} 20. Re1 {[%clk 00:11:36]} {[%emt
00:00:37]} Ng5 {[%clk 00:12:57]} {[%emt 00:01:14]} 21. Qg3 {[%clk 00:11:45]}
{[%emt 00:00:02]} Re6 {[%clk 00:13:05]} {[%emt 00:00:01]} 22. Be3 {[%clk
00:08:48]} {[%emt 00:03:07]} Ngxh3+ {[%clk 00:12:19]} {[%emt 00:00:56]} 23.
gxh3 {[%clk 00:08:09]} {[%emt 00:00:48]} Rg6 {[%clk 00:12:28]} {[%emt
00:00:02]} 24. Bxf4 {[%clk 00:08:16]} {[%emt 00:00:04]} exf4 {[%clk 00:12:34]}
{[%emt 00:00:03]} 0-1

[Event "British Rapidplay Championship 2023"]
[Site "Mercure Bradford, Bankfield Hotel"]
[Date "2023.04.16"]
[Round "10.3"]
[White "Arkell, Keith C"]
[Black "Makkar, Rajat"]
[Result "1/2-1/2"]
[TimeControl "15 minutes plus 10 seconds per move"]
[WhiteElo "2447"]
[BlackElo "2297"]

1. d4 {[%clk 00:15:18]} {[%emt 00:00:01]} d5 {[%clk 00:15:19]} {[%emt
00:00:02]} 2. Nf3 {[%clk 00:15:26]} {[%emt 00:00:01]} Nf6 {[%clk 00:15:28]}
{[%emt 00:00:02]} 3. c4 {[%clk 00:15:34]} {[%emt 00:00:02]} c6 {[%clk
00:15:37]} {[%emt 00:00:01]} 4. Qc2 {[%clk 00:15:43]} dxc4 {[%clk 00:15:44]}
{[%emt 00:00:03]} 5. Qxc4 {[%clk 00:15:51]} {[%emt 00:00:01]} Bf5 {[%clk
00:15:52]} {[%emt 00:00:02]} 6. g3 {[%clk 00:16:00]} {[%emt 00:00:02]} e6
{[%clk 00:16:00]} {[%emt 00:00:01]} 7. Bg2 {[%clk 00:16:08]} Be7 {[%clk
00:16:09]} {[%emt 00:00:02]} 8. O-O {[%clk 00:16:17]} {[%emt 00:00:01]} O-O
{[%clk 00:16:17]} {[%emt 00:00:02]} 9. Bg5 {[%clk 00:16:25]} {[%emt 00:00:02]}
Nbd7 {[%clk 00:16:02]} {[%emt 00:00:26]} 10. Nbd2 {[%clk 00:16:30]} {[%emt
00:00:05]} h6 {[%clk 00:14:47]} {[%emt 00:01:25]} 11. Bxf6 {[%clk 00:16:38]}
{[%emt 00:00:02]} Bxf6 {[%clk 00:14:19]} {[%emt 00:00:38]} 12. Rfd1 {[%clk
00:15:35]} {[%emt 00:01:13]} Qb6 {[%clk 00:14:01]} {[%emt 00:00:28]} 13. Qb3
{[%clk 00:12:17]} {[%emt 00:03:27]} Rfd8 {[%clk 00:13:22]} {[%emt 00:00:50]} 14.
e3 {[%clk 00:12:21]} {[%emt 00:00:06]} Qxb3 {[%clk 00:11:17]} {[%emt 00:02:15]}
15. Nxb3 {[%clk 00:12:20]} {[%emt 00:00:11]} a5 {[%clk 00:11:12]} {[%emt
00:00:15]} 16. Rac1 {[%clk 00:12:23]} {[%emt 00:00:07]} a4 {[%clk 00:10:52]}
{[%emt 00:00:30]} 17. Nc5 {[%clk 00:12:31]} {[%emt 00:00:02]} Nxc5 {[%clk
00:10:50]} {[%emt 00:00:12]} 18. Rxc5 {[%clk 00:12:39]} {[%emt 00:00:02]} a3
{[%clk 00:10:39]} {[%emt 00:00:21]} 19. b3 {[%clk 00:12:38]} {[%emt 00:00:10]}
Be7 {[%clk 00:10:19]} {[%emt 00:00:30]} 20. Rcc1 {[%clk 00:12:47]} {[%emt
00:00:02]} Be4 {[%clk 00:10:19]} {[%emt 00:00:10]} 21. Ne5 {[%clk 00:12:51]}
{[%emt 00:00:06]} Bxg2 {[%clk 00:10:22]} {[%emt 00:00:07]} 22. Kxg2 {[%clk
00:12:59]} {[%emt 00:00:01]} f6 {[%clk 00:10:15]} {[%emt 00:00:17]} 23. Nd3
{[%clk 00:13:06]} {[%emt 00:00:03]} Ra5 {[%clk 00:09:43]} {[%emt 00:00:42]} 24.
b4 {[%clk 00:12:31]} {[%emt 00:00:45]} Rb5 {[%clk 00:09:37]} {[%emt 00:00:17]}
25. Rc3 {[%clk 00:12:04]} {[%emt 00:00:37]} e5 {[%clk 00:07:57]} {[%emt
00:01:50]} 26. Rxa3 {[%clk 00:08:34]} {[%emt 00:03:39]} exd4 {[%clk 00:08:02]}
{[%emt 00:00:05]} 27. e4 {[%clk 00:07:05]} {[%emt 00:01:40]} b6 {[%clk
00:05:50]} {[%emt 00:02:22]} 28. Rc1 {[%clk 00:06:49]} {[%emt 00:00:26]} Bxb4
{[%clk 00:05:15]} {[%emt 00:00:44]} 29. Nxb4 {[%clk 00:06:03]} {[%emt
00:00:56]} Rxb4 {[%clk 00:05:24]} {[%emt 00:00:01]} 30. Rxc6 {[%clk 00:05:57]}
{[%emt 00:00:16]} d3 {[%clk 00:05:28]} {[%emt 00:00:06]} 31. Ra7 {[%clk
00:05:26]} {[%emt 00:00:41]} Rxe4 {[%clk 00:04:30]} {[%emt 00:01:07]} 32. Rcc7
{[%clk 00:04:46]} {[%emt 00:00:50]} Rg4 {[%clk 00:03:39]} {[%emt 00:01:01]} 33.
h3 {[%clk 00:04:22]} {[%emt 00:00:35]} Rg5 {[%clk 00:03:27]} {[%emt 00:00:22]}
34. h4 {[%clk 00:03:59]} {[%emt 00:00:32]} Rg4 {[%clk 00:03:08]} {[%emt
00:00:31]} 35. f3 {[%clk 00:04:04]} {[%emt 00:00:04]} d2 {[%clk 00:03:08]}
{[%emt 00:00:10]} 36. fxg4 {[%clk 00:04:12]} {[%emt 00:00:02]} d1=Q {[%clk
00:03:16]} {[%emt 00:00:02]} 37. Rxg7+ {[%clk 00:04:09]} {[%emt 00:00:01]}
1/2-1/2

[Event "British Rapidplay Championship 2023"]
[Site "Mercure Bradford, Bankfield Hotel"]
[Date "2023.04.16"]
[Round "10.4"]
[White "Ashton, Adam G"]
[Black "Eckersley-Waites, Tom"]
[Result "1-0"]
[TimeControl "15 minutes plus 10 seconds per move"]
[WhiteElo "2390"]
[BlackElo "2304"]

1. e4 {[%clk 00:15:14]} {[%emt 00:00:06]} e5 {[%clk 00:15:18]} {[%emt
00:00:02]} 2. Nf3 {[%clk 00:15:20]} {[%emt 00:00:04]} Nc6 {[%clk 00:15:26]}
{[%emt 00:00:02]} 3. Bb5 {[%clk 00:15:29]} {[%emt 00:00:01]} a6 {[%clk
00:15:31]} {[%emt 00:00:05]} 4. Ba4 {[%clk 00:15:32]} {[%emt 00:00:07]} Nf6
{[%clk 00:15:39]} {[%emt 00:00:02]} 5. O-O {[%clk 00:15:24]} {[%emt 00:00:18]}
b5 {[%clk 00:15:47]} {[%emt 00:00:02]} 6. Bb3 {[%clk 00:15:32]} {[%emt
00:00:02]} Be7 {[%clk 00:15:56]} 7. d3 {[%clk 00:15:30]} {[%emt 00:00:12]} O-O
{[%clk 00:15:59]} {[%emt 00:00:06]} 8. Nc3 {[%clk 00:15:26]} {[%emt 00:00:15]}
d6 {[%clk 00:15:48]} {[%emt 00:00:21]} 9. a4 {[%clk 00:14:44]} {[%emt
00:00:52]} Bg4 {[%clk 00:12:48]} {[%emt 00:03:09]} 10. Be3 {[%clk 00:14:06]}
{[%emt 00:00:49]} b4 {[%clk 00:10:23]} {[%emt 00:02:35]} 11. Nd5 {[%clk
00:13:59]} {[%emt 00:00:17]} Na5 {[%clk 00:10:31]} {[%emt 00:00:02]} 12. Ba2
{[%clk 00:12:02]} {[%emt 00:02:07]} Nxd5 {[%clk 00:10:11]} {[%emt 00:00:30]} 13.
Bxd5 {[%clk 00:12:08]} {[%emt 00:00:04]} c6 {[%clk 00:09:13]} {[%emt 00:01:08]}
14. Ba2 {[%clk 00:12:16]} {[%emt 00:00:03]} Rb8 {[%clk 00:09:17]} {[%emt
00:00:05]} 15. h3 {[%clk 00:12:15]} {[%emt 00:00:11]} Be6 {[%clk 00:09:25]}
{[%emt 00:00:02]} 16. Bxe6 {[%clk 00:11:09]} {[%emt 00:01:17]} fxe6 {[%clk
00:09:33]} {[%emt 00:00:01]} 17. d4 {[%clk 00:10:36]} {[%emt 00:00:43]} Qc7
{[%clk 00:07:18]} {[%emt 00:02:26]} 18. dxe5 {[%clk 00:10:30]} {[%emt
00:00:16]} dxe5 {[%clk 00:07:25]} {[%emt 00:00:02]} 19. Qe2 {[%clk 00:10:34]}
{[%emt 00:00:06]} b3 {[%clk 00:06:53]} {[%emt 00:00:42]} 20. c3 {[%clk
00:10:12]} {[%emt 00:00:32]} Ra8 {[%clk 00:06:24]} {[%emt 00:00:39]} 21. Nd2
{[%clk 00:09:59]} {[%emt 00:00:23]} c5 {[%clk 00:05:35]} {[%emt 00:00:59]} 22.
Nc4 {[%clk 00:09:57]} {[%emt 00:00:12]} Nc6 {[%clk 00:05:43]} {[%emt 00:00:02]}
23. Rfd1 {[%clk 00:09:32]} {[%emt 00:00:35]} Qb7 {[%clk 00:05:21]} {[%emt
00:00:33]} 24. Rd2 {[%clk 00:09:01]} {[%emt 00:00:40]} Nd4 {[%clk 00:05:04]}
{[%emt 00:00:27]} 25. cxd4 {[%clk 00:08:52]} {[%emt 00:00:19]} exd4 {[%clk
00:04:49]} {[%emt 00:00:25]} 26. Qg4 {[%clk 00:07:58]} {[%emt 00:01:04]} dxe3
{[%clk 00:04:58]} {[%emt 00:00:02]} 27. Qxe6+ {[%clk 00:07:58]} {[%emt
00:00:09]} Kh8 {[%clk 00:04:54]} {[%emt 00:00:14]} 28. Rd7 {[%clk 00:06:20]}
{[%emt 00:01:48]} exf2+ {[%clk 00:04:55]} {[%emt 00:00:09]} 29. Kf1 {[%clk
00:06:20]} {[%emt 00:00:10]} Qb8 {[%clk 00:03:53]} {[%emt 00:01:12]} 30. Qxe7
{[%clk 00:05:47]} {[%emt 00:00:43]} Qg3 {[%clk 00:04:02]} {[%emt 00:00:02]} 31.
Qe5 {[%clk 00:05:17]} {[%emt 00:00:39]} Qg6 {[%clk 00:04:10]} {[%emt 00:00:03]}
32. Nd6 {[%clk 00:03:12]} {[%emt 00:02:14]} Rf6 {[%clk 00:01:23]} {[%emt
00:02:58]} 33. Nf5 {[%clk 00:03:11]} {[%emt 00:00:11]} Re8 {[%clk 00:01:32]} 34.
Re7 {[%clk 00:02:57]} {[%emt 00:00:24]} Re6 {[%clk 00:00:49]} {[%emt 00:00:54]}
35. Rxe6 {[%clk 00:02:31]} {[%emt 00:00:36]} Rxe6 {[%clk 00:00:57]} {[%emt
00:00:01]} 36. Qxc5 {[%clk 00:00:57]} {[%emt 00:01:44]} h6 {[%clk 00:00:36]}
{[%emt 00:00:32]} 37. Qf8+ {[%clk 00:00:51]} {[%emt 00:00:16]} Kh7 {[%clk
00:00:44]} {[%emt 00:00:01]} 38. Ne7 {[%clk 00:00:53]} {[%emt 00:00:08]} Rxe7
{[%clk 00:00:28]} {[%emt 00:00:25]} 39. Qxe7 {[%clk 00:01:02]} {[%emt
00:00:02]} Qg3 {[%clk 00:00:23]} {[%emt 00:00:16]} 40. Qd7 {[%clk 00:00:57]}
{[%emt 00:00:13]} 1-0

[Event "British Rapidplay Championship 2023"]
[Site "Mercure Bradford, Bankfield Hotel"]
[Date "2023.04.16"]
[Round "10.5"]
[White "Edwards-Wright, Miles D"]
[Black "Khoury, Theo"]
[Result "0-1"]
[TimeControl "15 minutes plus 10 seconds per move"]
[WhiteElo "1937"]
[BlackElo "1772"]

1. g3 {[%clk 00:15:19]} d5 {[%clk 00:15:14]} {[%emt 00:00:07]} 2. Bg2 {[%clk
00:15:28]} {[%emt 00:00:01]} e5 {[%clk 00:15:22]} {[%emt 00:00:02]} 3. d3
{[%clk 00:15:31]} {[%emt 00:00:07]} Nf6 {[%clk 00:15:22]} {[%emt 00:00:09]} 4.
Nd2 {[%clk 00:15:28]} {[%emt 00:00:14]} c5 {[%clk 00:15:28]} {[%emt 00:00:04]}
5. e4 {[%clk 00:15:21]} {[%emt 00:00:17]} d4 {[%clk 00:15:24]} {[%emt
00:00:14]} 6. Ne2 {[%clk 00:15:25]} {[%emt 00:00:06]} Nc6 {[%emt 00:00:27]} 7.
f4 {[%clk 00:15:25]} Bd6 {[%clk 00:14:37]} {[%emt 00:00:50]} 8. Nf3 {[%clk
00:15:27]} {[%emt 00:00:08]} Bg4 {[%clk 00:14:28]} {[%emt 00:00:19]} 9. h3
{[%clk 00:15:21]} {[%emt 00:00:15]} Bxf3 {[%clk 00:14:36]} {[%emt 00:00:03]} 10.
Bxf3 {[%clk 00:15:30]} {[%emt 00:00:01]} b5 {[%clk 00:14:30]} {[%emt 00:00:15]}
11. c3 {[%clk 00:15:06]} {[%emt 00:00:35]} a5 {[%clk 00:13:52]} {[%emt
00:00:48]} 12. O-O {[%clk 00:14:58]} {[%emt 00:00:18]} O-O {[%clk 00:13:56]}
{[%emt 00:00:06]} 13. f5 {[%clk 00:14:51]} {[%emt 00:00:17]} h6 {[%clk
00:13:50]} {[%emt 00:00:15]} 14. g4 {[%clk 00:14:44]} {[%emt 00:00:18]} Nh7
{[%clk 00:13:55]} {[%emt 00:00:04]} 15. Kg2 {[%clk 00:14:14]} {[%emt 00:00:42]}
Be7 {[%clk 00:13:34]} {[%emt 00:00:30]} 16. Ng3 {[%clk 00:13:56]} {[%emt
00:00:28]} dxc3 {[%clk 00:13:06]} {[%emt 00:00:39]} 17. bxc3 {[%clk 00:14:00]}
{[%emt 00:00:06]} b4 {[%clk 00:13:15]} {[%emt 00:00:01]} 18. Qc2 {[%clk
00:12:27]} {[%emt 00:01:43]} bxc3 {[%clk 00:13:15]} {[%emt 00:00:09]} 19. Qxc3
{[%clk 00:12:34]} {[%emt 00:00:04]} Nd4 {[%clk 00:13:05]} {[%emt 00:00:20]} 20.
Rb1 {[%clk 00:11:22]} {[%emt 00:01:22]} Qc7 {[%clk 00:11:57]} {[%emt 00:01:18]}
21. Ne2 {[%clk 00:10:44]} {[%emt 00:00:48]} Nxe2 {[%clk 00:11:50]} {[%emt
00:00:17]} 22. Bxe2 {[%clk 00:10:52]} {[%emt 00:00:02]} Rfb8 {[%clk 00:11:34]}
{[%emt 00:00:26]} 23. Be3 {[%clk 00:10:35]} {[%emt 00:00:27]} Rb4 {[%clk
00:09:31]} {[%emt 00:02:13]} 24. a3 {[%clk 00:10:21]} {[%emt 00:00:24]} Rb7
{[%clk 00:09:18]} {[%emt 00:00:22]} 25. Rxb7 {[%clk 00:10:05]} {[%emt
00:00:26]} Qxb7 {[%clk 00:09:27]} {[%emt 00:00:02]} 26. Qxe5 {[%clk 00:10:06]}
{[%emt 00:00:09]} Bf6 {[%clk 00:08:54]} {[%emt 00:00:43]} 27. Qxc5 {[%clk
00:09:52]} {[%emt 00:00:24]} Qb2 {[%clk 00:09:03]} {[%emt 00:00:01]} 28. Kf3
{[%clk 00:09:41]} {[%emt 00:00:21]} Ng5+ {[%clk 00:08:50]} {[%emt 00:00:22]} 29.
Bxg5 {[%clk 00:09:36]} {[%emt 00:00:15]} hxg5 {[%clk 00:08:47]} {[%emt
00:00:13]} 30. Qe3 {[%clk 00:08:33]} {[%emt 00:01:14]} Rc8 {[%clk 00:08:45]}
{[%emt 00:00:12]} 31. h4 {[%clk 00:06:37]} {[%emt 00:02:06]} Rc2 {[%clk
00:07:42]} {[%emt 00:01:13]} 32. Re1 {[%clk 00:01:06]} {[%emt 00:05:41]} Bc3
{[%clk 00:07:14]} {[%emt 00:00:37]} 33. Bf1 {[%clk 00:00:59]} {[%emt 00:00:18]}
Bd4 {[%clk 00:06:05]} {[%emt 00:01:20]} 34. Rb1 {[%clk 00:00:30]} {[%emt
00:00:39]} Qxb1 {[%clk 00:06:10]} {[%emt 00:00:07]} 0-1

[Event "British Rapidplay Championship 2023"]
[Site "Mercure Bradford, Bankfield Hotel"]
[Date "2023.04.16"]
[Round "10.7"]
[White "Mosnegutu, Klauss"]
[Black "Hall, James"]
[Result "1-0"]
[TimeControl "15 minutes plus 10 seconds per move"]
[WhiteElo "2229"]
[BlackElo "1809"]

1. d4 {[%clk 00:15:18]} {[%emt 00:00:01]} Nf6 {[%clk 00:15:12]} {[%emt
00:00:08]} 2. c4 {[%clk 00:15:26]} {[%emt 00:00:01]} e5 {[%clk 00:15:21]}
{[%emt 00:00:01]} 3. dxe5 {[%clk 00:15:34]} {[%emt 00:00:02]} Ng4 {[%clk
00:15:30]} {[%emt 00:00:01]} 4. Nf3 {[%clk 00:15:24]} {[%emt 00:00:20]} Nc6
{[%clk 00:15:39]} {[%emt 00:00:01]} 5. Bf4 {[%clk 00:15:26]} {[%emt 00:00:08]}
f6 {[%clk 00:15:47]} {[%emt 00:00:02]} 6. e6 {[%clk 00:14:52]} {[%emt
00:00:44]} Bb4+ {[%clk 00:15:21]} {[%emt 00:00:35]} 7. Nc3 {[%clk 00:14:58]}
{[%emt 00:00:05]} Bxc3+ {[%clk 00:14:56]} {[%emt 00:00:35]} 8. bxc3 {[%clk
00:15:06]} {[%emt 00:00:02]} dxe6 {[%clk 00:14:56]} {[%emt 00:00:10]} 9. Qxd8+
{[%clk 00:15:13]} {[%emt 00:00:03]} Kxd8 {[%clk 00:15:03]} {[%emt 00:00:02]} 10.
h3 {[%clk 00:15:13]} {[%emt 00:00:11]} e5 {[%clk 00:15:04]} {[%emt 00:00:09]}
11. hxg4 {[%clk 00:15:09]} {[%emt 00:00:15]} exf4 {[%clk 00:15:12]} {[%emt
00:00:02]} 12. g5 {[%clk 00:15:18]} {[%emt 00:00:01]} Ne5 {[%clk 00:11:39]}
{[%emt 00:03:42]} 13. gxf6 {[%clk 00:15:19]} {[%emt 00:00:09]} Nxf3+ {[%clk
00:05:36]} {[%emt 00:06:12]} 14. exf3 {[%clk 00:15:27]} {[%emt 00:00:02]} g5
{[%clk 00:05:46]} 15. O-O-O+ {[%clk 00:15:07]} {[%emt 00:00:32]} Ke8 {[%clk
00:04:53]} {[%emt 00:01:02]} 16. Bd3 {[%clk 00:14:47]} {[%emt 00:00:30]} Kf7
{[%clk 00:04:34]} {[%emt 00:00:28]} 17. Rh6 {[%clk 00:13:27]} {[%emt 00:01:30]}
Be6 {[%clk 00:03:54]} {[%emt 00:00:49]} 18. Re1 {[%clk 00:10:15]} {[%emt
00:03:23]} Rad8 {[%clk 00:02:34]} {[%emt 00:01:30]} 19. Bxh7 {[%clk 00:10:23]}
{[%emt 00:00:02]} Rd6 {[%clk 00:01:53]} {[%emt 00:00:51]} 20. Bg6+ {[%clk
00:09:15]} {[%emt 00:01:19]} Kg8 {[%clk 00:02:01]} {[%emt 00:00:01]} 21. Rxe6
{[%clk 00:08:28]} {[%emt 00:00:57]} Rxe6 {[%clk 00:01:45]} {[%emt 00:00:26]} 22.
f7+ {[%clk 00:08:37]} {[%emt 00:00:01]} 1-0